{"text_format":"1","workbook":"xlsx","n_sheets":4,"sheets":["Data","Summary","Reference","Indicator"],"not_rendered":{"charts":0,"images":1,"macros":1,"external_links":1,"defined_names":20,"comments":0,"pivot_tables":0},"unopened":[],"bounds":{"document_bytes":16777216,"sheet_cells":100000,"rows_first":2000,"rows_last":500,"rows_between":2000,"halvings":0,"cell_chars":16384,"cell_head_chars":4096},"cells_cut":0,"cells_raw":0,"read":"whole","date_system":"1900"}

{"sheet":"Data","index":0,"n_rows":112,"n_cols":18,"rows_kept":112,"cut":false,"hidden":false,"merged":[[1,1,1,15],[9,2,9,17]]}
[]
[null,{"$f":"CONCATENATE(\"Data collection tool for QUM Indicator \", Indicator_number, \":\n\", Indicator_name)","v":"Data collection tool for QUM Indicator 8.6:\nPercentage of older patients whose discharge summaries contain a current, accurate and comprehensive list of medicines, including explanations for any medication therapy changes and, if applicable, details of a deprescribing plan."}]
[null,"©Copyright NSW Therapeutic Advisory Group Inc 2020"]
[null,{"$f":"CONCATENATE(\"This form should be used in conjunction with the methodology in QUM Indicator \", Indicator_number)","v":"This form should be used in conjunction with the methodology in QUM Indicator 8.6"}]
[]
[null,"Date of audit:",null,null,"Electronic Discharge Summaries (EDS) in use? "]
[null,"Hospital name:"]
[null,"Number of adult beds in the hospital:"]
[]
[null,null,"Indicator 8.6"]
[null,"Question",1,2,3,"3a",4,"4a","4b","4c",5,6,7,"7a","7b",8,9,10]
[null,"Patient Audit Number","Is there a documented discharge summary/letter? ","Is a medicines list included in the discharge summary/letter? ","Is there a documented Best Possible Medication History (BPMH)?","If answered No in Q3, What source is used for the preadmission home medication list?","Have all ongoing medicines been listed? ","For all the medicines listed, has all required information, i.e. dose, frequency, route, duration (if required) been provided? ","Are all listed medicines current? (i.e. there are no medicines listed that should NOT be prescribed on discharge) ","Are all allergies and intolerances listed? \nIf the patient has no known allergies/ unknown allergy status this must be stated","Number of medication therapy changes between admission and discharge \nIf no changes, enter '0'","Number of medication therapy changes where an appropriate explanation for the change is provided \nIf no changes, enter '0'","Was a deprescribing plan recommended/initiated in hospital? ","If answered Yes to Q7, have the details of the deprescribing plan/deprecribing been provided in/with the discharge summary/letter?\nWhere there is evidence that a separate deprescribing plan accompanied the discharge summary/letter, answer 'Yes'","Name the medicine(s) with a deprescribing plan/being deprescribed? ","Age of Patient (Years)","Ward/Team","Comments"]
[null,"(Patients taking one or more medicines at discharge)"," Yes, No"," Yes, No"," Yes, No","Medication list documented by a clinician on admission,\nFirst medication(s) prescribed on admission,\nOther (free text)","Yes, No"," Yes, No"," Yes, No"," Yes, No","Number","Number"," Yes, No"," Yes, No","Optional Question\nFree text","50-120","Free text","Free text"]
[null,1]
[null,2]
[null,3]
[null,4]
[null,5]
[null,6]
[null,7]
[null,8]
[null,9]
[null,10]
[null,11]
[null,12]
[null,13]
[null,14]
[null,15]
[null,16]
[null,17]
[null,18]
[null,19]
[null,20]
[null,21]
[null,22]
[null,23]
[null,24]
[null,25]
[null,26]
[null,27]
[null,28]
[null,29]
[null,30]
[null,31]
[null,32]
[null,33]
[null,34]
[null,35]
[null,36]
[null,37]
[null,38]
[null,39]
[null,40]
[null,41]
[null,42]
[null,43]
[null,44]
[null,45]
[null,46]
[null,47]
[null,48]
[null,49]
[null,50]
[null,51]
[null,52]
[null,53]
[null,54]
[null,55]
[null,56]
[null,57]
[null,58]
[null,59]
[null,60]
[null,61]
[null,62]
[null,63]
[null,64]
[null,65]
[null,66]
[null,67]
[null,68]
[null,69]
[null,70]
[null,71]
[null,72]
[null,73]
[null,74]
[null,75]
[null,76]
[null,77]
[null,78]
[null,79]
[null,80]
[null,81]
[null,82]
[null,83]
[null,84]
[null,85]
[null,86]
[null,87]
[null,88]
[null,89]
[null,90]
[null,91]
[null,92]
[null,93]
[null,94]
[null,95]
[null,96]
[null,97]
[null,98]
[null,99]

{"sheet":"Summary","index":1,"n_rows":30,"n_cols":11,"rows_kept":30,"cut":false,"hidden":false,"merged":[[27,1,28,1],[9,5,9,6],[10,5,10,6],[0,1,0,9],[10,1,11,1],[18,1,20,1],[22,1,24,1],[11,5,11,6],[14,1,16,1],[14,5,14,6],[15,5,15,6],[16,5,16,6]]}
[null,{"$f":"CONCATENATE(\"Collated data for QUM Indicator \", Indicator_number, \":\n\", Indicator_name)","v":"Collated data for QUM Indicator 8.6:\nPercentage of older patients whose discharge summaries contain a current, accurate and comprehensive list of medicines, including explanations for any medication therapy changes and, if applicable, details of a deprescribing plan."}]
[null,"©Copyright NSW Therapeutic Advisory Group Inc 2020"]
[]
[]
[null,"Audit date:",{"$f":"IF(ISBLANK(Audit_date), \"\", Audit_date)","v":""}]
[null,"Hospital name:",{"$f":"IF(ISBLANK(Hospital_name), \"\", Hospital_name)","v":""}]
[null,"Number of adult beds in the hospital:",{"$f":"IF(ISBLANK(Adult_bed_number), \"\", Adult_bed_number)","v":""}]
[null,"Electronic Discharge Summaries (EDS) in use?",{"$f":"IF(ISBLANK(EDS_in_use), \"\", EDS_in_use)","v":""}]
[]
[null,"Total Number of Patients Audited","Criteria","Indicator 8.6: Older patients taking medicine(s) at discharge whose discharge summaries contain a current, accurate and comprehensive medicines list, including explanations for any medication changes and, if applicable, details of a deprescribing plan.","Number of older patients with a documented discharge summary/letter AND a medicines list included","Of the older patients with a discharge summary containing a medicines list, the list is current, accurate and comprehensive medicines and includes explanations for any medication changes and, if applicable, details of a deprescribing plan."]
[null,{"$f":"COUNTA(Data!C14:C112)","v":0},"Number of patients",{"$f":"SUMPRODUCT((Data!C14:C112=\"Yes\")*(Data!D14:D112=\"Yes\")*(Data!G14:G112=\"Yes\")*(Data!H14:H112=\"Yes\")*(Data!I14:I112=\"Yes\")*(Data!J14:J112=\"Yes\")*(Data!N14:N112<>\"No\")*(Data!N14:N112<>\"\")*(q4_and_q5_match=TRUE))","v":0},{"$f":"COUNTIFS(Data!$C$14:$C$112, \"Yes\",Data!$D$14:$D$112, \"Yes\")","v":0},{"$f":"SUMPRODUCT((Data!C14:C112=\"Yes\")*(Data!D14:D112=\"Yes\")*(Data!G14:G112=\"Yes\")*(Data!H14:H112=\"Yes\")*(Data!I14:I112=\"Yes\")*(Data!J14:J112=\"Yes\")*(Data!N14:N112<>\"No\")*(Data!N14:N112<>\"\")*(q4_and_q5_match=TRUE))","v":0}]
[null,null,"Percentage ",{"$f":"IF(Total_Audits>0, D11/Total_Audits, \"\")","v":""},null,{"$f":"IF(Total_Audits>0, F11/COUNTIFS(Data!$C$14:$C$112, \"Yes\",Data!$D$14:$D$112, \"Yes\"), \"\")","v":""}]
[]
[null,"Summary of each data point"]
[null,"Indicator 8.6","Data point","Is there a documented discharge summary/letter? ","Is a medicines list included in the discharge summary/letter? ","Is there a documented Best Possible Medication History (BPMH)?",null,null,"Source of Discharge List where BPMH NOT Documented","Number of Discharge Lists"]
[null,null,"Absolute number (answered \"Yes\")",{"$f":"COUNTIF(Data!C14:C112, \"Yes\")","v":0},{"$f":"COUNTIF(Data!D14:D112, \"Yes\")","v":0},{"$f":"COUNTIF(Data!E10:E108, \"Yes\")","v":0},null,null,"Medication list documented by a clinician on admission",{"$f":"COUNTIFS(Data!E$14:E$112,\"No\",Data!$F$14:$F$112,Reference!$H33)","v":0}]
[null,null,"Percentage of total audits",{"$f":"IF(Total_Audits>0, D16/Total_Audits, \"\")","v":""},{"$f":"IF(Total_Audits>0, E16/Total_Audits, \"\")","v":""},{"$f":"IF(Total_Audits>0, F16/Total_Audits, \"\")","v":""},null,null,"First medication(s) prescribed on admission",{"$f":"COUNTIFS(Data!E$14:E$112,\"No\",Data!$F$14:$F$112,Reference!$H34)","v":0}]
[null,null,null,null,null,null,null,null,"Other",{"$f":"COUNTIFS(Data!E$14:E$112,\"No\") - (SUM(J16:J17))","v":0}]
[null,"Indicator 8.6","Data point","Have all ongoing medicines been listed? ","For all the medicines listed, has all required information, i.e. dose, frequency, route, duration (if required) been provided? "]
[null,null,"Absolute number (answered \"Yes\")",{"$f":"COUNTIF(Data!G14:G112, \"Yes\")","v":0},{"$f":"COUNTIF(Data!H14:H112, \"Yes\")","v":0}]
[null,null,"Percentage of total audits",{"$f":"IF(Total_Audits>0, D20/Total_Audits, \"\")","v":""},{"$f":"IF(Total_Audits>0, E20/Total_Audits, \"\")","v":""}]
[null,null,null,null,null,null,null,null,"Data point","Number of medication therapy changes between admission and discharge ","Number of medication therapy changes where an appropriate explanation for the change is provided "]
[null,"Indicator 8.6","Data point","Are all listed medicines current? (i.e. there are no medicines listed that should NOT be prescribed on discharge) ","Are all allergies and intolerances listed?","Was a deprescribing plan recommended/initiated in hospital? ","When a deprescribing plan was recommended/initiated in hospital, have the details of the deprescribing plan/deprescribing been provided in/with the discharge summary/letter?",null,0,{"$f":"COUNTIFS(Data!$K$14:$K$112,0)","v":0},{"$f":"COUNTIFS(Data!$L$14:$L$112,0)","v":0}]
[null,null,"Absolute number (answered \"Yes\")",{"$f":"COUNTIF(Data!I14:I112, \"Yes\")","v":0},{"$f":"COUNTIF(Data!J14:J112, \"Yes\")","v":0},{"$f":"COUNTIF(Data!M14:M112, \"Yes\")","v":0},{"$f":"COUNTIF(Data!N14:N112, \"Yes\")","v":0},null,1,{"$f":"COUNTIFS(Data!$K$14:$K$112,1)","v":0},{"$f":"COUNTIFS(Data!$L$14:$L$112,1)","v":0}]
[null,null,"Percentage of total audits",{"$f":"IF(Total_Audits>0, D24/Total_Audits, \"\")","v":""},{"$f":"IF(Total_Audits>0, E24/Total_Audits, \"\")","v":""},{"$f":"IF(Total_Audits>0, F24/Total_Audits, \"\")","v":""},{"$f":"IF(Total_Audits>0, G24/F24, \"\")","v":""},null,2,{"$f":"COUNTIFS(Data!$K$14:$K$112,2)","v":0},{"$f":"COUNTIFS(Data!$L$14:$L$112,2)","v":0}]
[null,null,null,null,null,null,null,null,3,{"$f":"COUNTIFS(Data!$K$14:$K$112,3)","v":0},{"$f":"COUNTIFS(Data!$L$14:$L$112,3)","v":0}]
[null,null,null,null,null,null,null,null,4,{"$f":"COUNTIFS(Data!$K$14:$K$112,4)","v":0},{"$f":"COUNTIFS(Data!$L$14:$L$112,4)","v":0}]
[null,"Age data (years)","Average age","Youngest age","Oldest age",null,null,null,5,{"$f":"COUNTIFS(Data!$K$14:$K$112,5)","v":0},{"$f":"COUNTIFS(Data!$L$14:$L$112,5)","v":0}]
[null,null,{"$f":"IF(Total_Audits>0, ROUND(AVERAGE(pt_age),0), \"\")","v":""},{"$f":"IF(Total_Audits>0, MIN(pt_age), \"\")","v":""},{"$f":"IF(Total_Audits>0, MAX(pt_age), \"\")","v":""},null,null,null,6,{"$f":"COUNTIFS(Data!$K$14:$K$112,6)","v":0},{"$f":"COUNTIFS(Data!$L$14:$L$112,6)","v":0}]
[null,null,null,null,null,null,null,null,"≥ 7",{"$f":"COUNTIFS(Data!K14:K112,\">6\")","v":0},{"$f":"COUNTIFS(Data!L14:L112,\">6\")","v":0}]

{"sheet":"Reference","index":2,"n_rows":112,"n_cols":11,"rows_kept":112,"cut":false,"hidden":true,"merged":[[32,6,34,6],[12,9,12,10],[26,6,30,6],[20,6,23,6],[7,6,8,6],[11,6,12,6],[14,6,18,6]]}
["Reference sheet"]
[]
["The reference sheet should only be edited by an authorised IT consulant or executive members of NSW TAG. Inadvertent changes can have impact across the entire workbook."]
[]
["This sheet contains the common variable areas within each tool to allow for rapid development and alteration."]
["It contains information regarding formula derivation and effects."]
[]
["Common variables",null,null,"Derived information",null,null,"YesNo List","Yes"]
["Indicator number:",8.6,null,"Hospital name:",{"$f":"IF(ISBLANK(Hospital_name), \"\", Hospital_name)","v":""},null,null,"No"]
["Indicator name:","Percentage of older patients whose discharge summaries contain a current, accurate and comprehensive list of medicines, including explanations for any medication therapy changes and, if applicable, details of a deprescribing plan.",null,"Number of adult beds:",{"$f":"IF(ISBLANK(Adult_bed_number), \"\", Adult_bed_number)","v":""},null,"[N/A]","N/A"]
["Local guideline affected:"]
[null,null,null,null,null,null,"Risk categories","High risk"]
[null,null,null,null,null,null,null,"Minimal risk",null,"Audit Q4 equals Q5"]
[null,null,null,null,null,null,null,null,null,1,{"$f":"AND((Data!K14=Data!L14),NOT(ISBLANK(Data!K14)))","v":false}]
[null,null,null,null,null,null,"Patient categories","Medical",null,2,{"$f":"AND((Data!K15=Data!L15),NOT(ISBLANK(Data!K15)))","v":false}]
[null,null,null,null,null,null,null,"Surgical",null,3,{"$f":"AND((Data!K16=Data!L16),NOT(ISBLANK(Data!K16)))","v":false}]
[null,null,null,null,null,null,null,"Oncology",null,4,{"$f":"AND((Data!K17=Data!L17),NOT(ISBLANK(Data!K17)))","v":false}]
[null,null,null,null,null,null,null,"Obstetrics",null,5,{"$f":"AND((Data!K18=Data!L18),NOT(ISBLANK(Data!K18)))","v":false}]
[null,null,null,null,null,null,null,"Other",null,6,{"$f":"AND((Data!K19=Data!L19),NOT(ISBLANK(Data!K19)))","v":false}]
[null,null,null,null,null,null,null,null,null,7,{"$f":"AND((Data!K20=Data!L20),NOT(ISBLANK(Data!K20)))","v":false}]
[null,null,null,null,null,null,"Documentation location","NIMC",null,8,{"$f":"AND((Data!K21=Data!L21),NOT(ISBLANK(Data!K21)))","v":false}]
[null,null,null,null,null,null,null,"Medical notes",null,9,{"$f":"AND((Data!K22=Data!L22),NOT(ISBLANK(Data!K22)))","v":false}]
[null,null,null,null,null,null,null,"Nursing notes",null,10,{"$f":"AND((Data!K23=Data!L23),NOT(ISBLANK(Data!K23)))","v":false}]
[null,null,null,null,null,null,null,"Other",null,11,{"$f":"AND((Data!K24=Data!L24),NOT(ISBLANK(Data!K24)))","v":false}]
[null,null,null,null,null,null,null,null,null,12,{"$f":"AND((Data!K25=Data!L25),NOT(ISBLANK(Data!K25)))","v":false}]
[null,null,null,null,null,null,null,null,null,13,{"$f":"AND((Data!K26=Data!L26),NOT(ISBLANK(Data!K26)))","v":false}]
[null,null,null,null,null,null,"recommendation location","Discharge summary",null,14,{"$f":"AND((Data!K27=Data!L27),NOT(ISBLANK(Data!K27)))","v":false}]
[null,null,null,null,null,null,null,"Discharge letter",null,15,{"$f":"AND((Data!K28=Data!L28),NOT(ISBLANK(Data!K28)))","v":false}]
[null,null,null,null,null,null,null,"Phone call",null,16,{"$f":"AND((Data!K29=Data!L29),NOT(ISBLANK(Data!K29)))","v":false}]
[null,null,null,null,null,null,null,"Telehealth",null,17,{"$f":"AND((Data!K30=Data!L30),NOT(ISBLANK(Data!K30)))","v":false}]
[null,null,null,null,null,null,null,"Other",null,18,{"$f":"AND((Data!K31=Data!L31),NOT(ISBLANK(Data!K31)))","v":false}]
[null,null,null,null,null,null,null,null,null,19,{"$f":"AND((Data!K32=Data!L32),NOT(ISBLANK(Data!K32)))","v":false}]
[null,null,null,null,null,null,"Source of preadmission home meds list","Medication list documented by a clinician on admission",null,20,{"$f":"AND((Data!K33=Data!L33),NOT(ISBLANK(Data!K33)))","v":false}]
[null,null,null,null,null,null,null,"First medication(s) prescribed on admission",null,21,{"$f":"AND((Data!K34=Data!L34),NOT(ISBLANK(Data!K34)))","v":false}]
[null,null,null,null,null,null,null,"Other",null,22,{"$f":"AND((Data!K35=Data!L35),NOT(ISBLANK(Data!K35)))","v":false}]
[null,null,null,null,null,null,null,null,null,23,{"$f":"AND((Data!K36=Data!L36),NOT(ISBLANK(Data!K36)))","v":false}]
[null,null,null,null,null,null,null,null,null,24,{"$f":"AND((Data!K37=Data!L37),NOT(ISBLANK(Data!K37)))","v":false}]
[null,null,null,null,null,null,null,null,null,25,{"$f":"AND((Data!K38=Data!L38),NOT(ISBLANK(Data!K38)))","v":false}]
[null,null,null,null,null,null,null,null,null,26,{"$f":"AND((Data!K39=Data!L39),NOT(ISBLANK(Data!K39)))","v":false}]
[null,null,null,null,null,null,null,null,null,27,{"$f":"AND((Data!K40=Data!L40),NOT(ISBLANK(Data!K40)))","v":false}]
[null,null,null,null,null,null,null,null,null,28,{"$f":"AND((Data!K41=Data!L41),NOT(ISBLANK(Data!K41)))","v":false}]
[null,null,null,null,null,null,null,null,null,29,{"$f":"AND((Data!K42=Data!L42),NOT(ISBLANK(Data!K42)))","v":false}]
[null,null,null,null,null,null,null,null,null,30,{"$f":"AND((Data!K43=Data!L43),NOT(ISBLANK(Data!K43)))","v":false}]
[null,null,null,null,null,null,null,null,null,31,{"$f":"AND((Data!K44=Data!L44),NOT(ISBLANK(Data!K44)))","v":false}]
[null,null,null,null,null,null,null,null,null,32,{"$f":"AND((Data!K45=Data!L45),NOT(ISBLANK(Data!K45)))","v":false}]
[null,null,null,null,null,null,null,null,null,33,{"$f":"AND((Data!K46=Data!L46),NOT(ISBLANK(Data!K46)))","v":false}]
[null,null,null,null,null,null,null,null,null,34,{"$f":"AND((Data!K47=Data!L47),NOT(ISBLANK(Data!K47)))","v":false}]
[null,null,null,null,null,null,null,null,null,35,{"$f":"AND((Data!K48=Data!L48),NOT(ISBLANK(Data!K48)))","v":false}]
[null,null,null,null,null,null,null,null,null,36,{"$f":"AND((Data!K49=Data!L49),NOT(ISBLANK(Data!K49)))","v":false}]
[null,null,null,null,null,null,null,null,null,37,{"$f":"AND((Data!K50=Data!L50),NOT(ISBLANK(Data!K50)))","v":false}]
[null,null,null,null,null,null,null,null,null,38,{"$f":"AND((Data!K51=Data!L51),NOT(ISBLANK(Data!K51)))","v":false}]
[null,null,null,null,null,null,null,null,null,39,{"$f":"AND((Data!K52=Data!L52),NOT(ISBLANK(Data!K52)))","v":false}]
[null,null,null,null,null,null,null,null,null,40,{"$f":"AND((Data!K53=Data!L53),NOT(ISBLANK(Data!K53)))","v":false}]
[null,null,null,null,null,null,null,null,null,41,{"$f":"AND((Data!K54=Data!L54),NOT(ISBLANK(Data!K54)))","v":false}]
[null,null,null,null,null,null,null,null,null,42,{"$f":"AND((Data!K55=Data!L55),NOT(ISBLANK(Data!K55)))","v":false}]
[null,null,null,null,null,null,null,null,null,43,{"$f":"AND((Data!K56=Data!L56),NOT(ISBLANK(Data!K56)))","v":false}]
[null,null,null,null,null,null,null,null,null,44,{"$f":"AND((Data!K57=Data!L57),NOT(ISBLANK(Data!K57)))","v":false}]
[null,null,null,null,null,null,null,null,null,45,{"$f":"AND((Data!K58=Data!L58),NOT(ISBLANK(Data!K58)))","v":false}]
[null,null,null,null,null,null,null,null,null,46,{"$f":"AND((Data!K59=Data!L59),NOT(ISBLANK(Data!K59)))","v":false}]
[null,null,null,null,null,null,null,null,null,47,{"$f":"AND((Data!K60=Data!L60),NOT(ISBLANK(Data!K60)))","v":false}]
[null,null,null,null,null,null,null,null,null,48,{"$f":"AND((Data!K61=Data!L61),NOT(ISBLANK(Data!K61)))","v":false}]
[null,null,null,null,null,null,null,null,null,49,{"$f":"AND((Data!K62=Data!L62),NOT(ISBLANK(Data!K62)))","v":false}]
[null,null,null,null,null,null,null,null,null,50,{"$f":"AND((Data!K63=Data!L63),NOT(ISBLANK(Data!K63)))","v":false}]
[null,null,null,null,null,null,null,null,null,51,{"$f":"AND((Data!K64=Data!L64),NOT(ISBLANK(Data!K64)))","v":false}]
[null,null,null,null,null,null,null,null,null,52,{"$f":"AND((Data!K65=Data!L65),NOT(ISBLANK(Data!K65)))","v":false}]
[null,null,null,null,null,null,null,null,null,53,{"$f":"AND((Data!K66=Data!L66),NOT(ISBLANK(Data!K66)))","v":false}]
[null,null,null,null,null,null,null,null,null,54,{"$f":"AND((Data!K67=Data!L67),NOT(ISBLANK(Data!K67)))","v":false}]
[null,null,null,null,null,null,null,null,null,55,{"$f":"AND((Data!K68=Data!L68),NOT(ISBLANK(Data!K68)))","v":false}]
[null,null,null,null,null,null,null,null,null,56,{"$f":"AND((Data!K69=Data!L69),NOT(ISBLANK(Data!K69)))","v":false}]
[null,null,null,null,null,null,null,null,null,57,{"$f":"AND((Data!K70=Data!L70),NOT(ISBLANK(Data!K70)))","v":false}]
[null,null,null,null,null,null,null,null,null,58,{"$f":"AND((Data!K71=Data!L71),NOT(ISBLANK(Data!K71)))","v":false}]
[null,null,null,null,null,null,null,null,null,59,{"$f":"AND((Data!K72=Data!L72),NOT(ISBLANK(Data!K72)))","v":false}]
[null,null,null,null,null,null,null,null,null,60,{"$f":"AND((Data!K73=Data!L73),NOT(ISBLANK(Data!K73)))","v":false}]
[null,null,null,null,null,null,null,null,null,61,{"$f":"AND((Data!K74=Data!L74),NOT(ISBLANK(Data!K74)))","v":false}]
[null,null,null,null,null,null,null,null,null,62,{"$f":"AND((Data!K75=Data!L75),NOT(ISBLANK(Data!K75)))","v":false}]
[null,null,null,null,null,null,null,null,null,63,{"$f":"AND((Data!K76=Data!L76),NOT(ISBLANK(Data!K76)))","v":false}]
[null,null,null,null,null,null,null,null,null,64,{"$f":"AND((Data!K77=Data!L77),NOT(ISBLANK(Data!K77)))","v":false}]
[null,null,null,null,null,null,null,null,null,65,{"$f":"AND((Data!K78=Data!L78),NOT(ISBLANK(Data!K78)))","v":false}]
[null,null,null,null,null,null,null,null,null,66,{"$f":"AND((Data!K79=Data!L79),NOT(ISBLANK(Data!K79)))","v":false}]
[null,null,null,null,null,null,null,null,null,67,{"$f":"AND((Data!K80=Data!L80),NOT(ISBLANK(Data!K80)))","v":false}]
[null,null,null,null,null,null,null,null,null,68,{"$f":"AND((Data!K81=Data!L81),NOT(ISBLANK(Data!K81)))","v":false}]
[null,null,null,null,null,null,null,null,null,69,{"$f":"AND((Data!K82=Data!L82),NOT(ISBLANK(Data!K82)))","v":false}]
[null,null,null,null,null,null,null,null,null,70,{"$f":"AND((Data!K83=Data!L83),NOT(ISBLANK(Data!K83)))","v":false}]
[null,null,null,null,null,null,null,null,null,71,{"$f":"AND((Data!K84=Data!L84),NOT(ISBLANK(Data!K84)))","v":false}]
[null,null,null,null,null,null,null,null,null,72,{"$f":"AND((Data!K85=Data!L85),NOT(ISBLANK(Data!K85)))","v":false}]
[null,null,null,null,null,null,null,null,null,73,{"$f":"AND((Data!K86=Data!L86),NOT(ISBLANK(Data!K86)))","v":false}]
[null,null,null,null,null,null,null,null,null,74,{"$f":"AND((Data!K87=Data!L87),NOT(ISBLANK(Data!K87)))","v":false}]
[null,null,null,null,null,null,null,null,null,75,{"$f":"AND((Data!K88=Data!L88),NOT(ISBLANK(Data!K88)))","v":false}]
[null,null,null,null,null,null,null,null,null,76,{"$f":"AND((Data!K89=Data!L89),NOT(ISBLANK(Data!K89)))","v":false}]
[null,null,null,null,null,null,null,null,null,77,{"$f":"AND((Data!K90=Data!L90),NOT(ISBLANK(Data!K90)))","v":false}]
[null,null,null,null,null,null,null,null,null,78,{"$f":"AND((Data!K91=Data!L91),NOT(ISBLANK(Data!K91)))","v":false}]
[null,null,null,null,null,null,null,null,null,79,{"$f":"AND((Data!K92=Data!L92),NOT(ISBLANK(Data!K92)))","v":false}]
[null,null,null,null,null,null,null,null,null,80,{"$f":"AND((Data!K93=Data!L93),NOT(ISBLANK(Data!K93)))","v":false}]
[null,null,null,null,null,null,null,null,null,81,{"$f":"AND((Data!K94=Data!L94),NOT(ISBLANK(Data!K94)))","v":false}]
[null,null,null,null,null,null,null,null,null,82,{"$f":"AND((Data!K95=Data!L95),NOT(ISBLANK(Data!K95)))","v":false}]
[null,null,null,null,null,null,null,null,null,83,{"$f":"AND((Data!K96=Data!L96),NOT(ISBLANK(Data!K96)))","v":false}]
[null,null,null,null,null,null,null,null,null,84,{"$f":"AND((Data!K97=Data!L97),NOT(ISBLANK(Data!K97)))","v":false}]
[null,null,null,null,null,null,null,null,null,85,{"$f":"AND((Data!K98=Data!L98),NOT(ISBLANK(Data!K98)))","v":false}]
[null,null,null,null,null,null,null,null,null,86,{"$f":"AND((Data!K99=Data!L99),NOT(ISBLANK(Data!K99)))","v":false}]
[null,null,null,null,null,null,null,null,null,87,{"$f":"AND((Data!K100=Data!L100),NOT(ISBLANK(Data!K100)))","v":false}]
[null,null,null,null,null,null,null,null,null,88,{"$f":"AND((Data!K101=Data!L101),NOT(ISBLANK(Data!K101)))","v":false}]
[null,null,null,null,null,null,null,null,null,89,{"$f":"AND((Data!K102=Data!L102),NOT(ISBLANK(Data!K102)))","v":false}]
[null,null,null,null,null,null,null,null,null,90,{"$f":"AND((Data!K103=Data!L103),NOT(ISBLANK(Data!K103)))","v":false}]
[null,null,null,null,null,null,null,null,null,91,{"$f":"AND((Data!K104=Data!L104),NOT(ISBLANK(Data!K104)))","v":false}]
[null,null,null,null,null,null,null,null,null,92,{"$f":"AND((Data!K105=Data!L105),NOT(ISBLANK(Data!K105)))","v":false}]
[null,null,null,null,null,null,null,null,null,93,{"$f":"AND((Data!K106=Data!L106),NOT(ISBLANK(Data!K106)))","v":false}]
[null,null,null,null,null,null,null,null,null,94,{"$f":"AND((Data!K107=Data!L107),NOT(ISBLANK(Data!K107)))","v":false}]
[null,null,null,null,null,null,null,null,null,95,{"$f":"AND((Data!K108=Data!L108),NOT(ISBLANK(Data!K108)))","v":false}]
[null,null,null,null,null,null,null,null,null,96,{"$f":"AND((Data!K109=Data!L109),NOT(ISBLANK(Data!K109)))","v":false}]
[null,null,null,null,null,null,null,null,null,97,{"$f":"AND((Data!K110=Data!L110),NOT(ISBLANK(Data!K110)))","v":false}]
[null,null,null,null,null,null,null,null,null,98,{"$f":"AND((Data!K111=Data!L111),NOT(ISBLANK(Data!K111)))","v":false}]
[null,null,null,null,null,null,null,null,null,99,{"$f":"AND((Data!K112=Data!L112),NOT(ISBLANK(Data!K112)))","v":false}]

{"sheet":"Indicator","index":3,"n_rows":5,"n_cols":2,"rows_kept":5,"cut":false,"hidden":false,"merged":[]}
[]
[]
[null,"Below is the embedded PDF of the indicator. "]
[null,"Double-click this icon to open a full copy of the indicator for your reference."]
[null,"Click outside the full copy to re-enter the audit tool (Excel) again."]